{"text_format":"1","workbook":"xlsx","n_sheets":4,"sheets":["Angaben BGA und LW","Massnahmen und Zuwendung","Viehbesatz","Weitere Kooperationspartner"],"not_rendered":{"charts":0,"images":0,"macros":1,"external_links":0,"defined_names":5,"comments":0,"pivot_tables":0},"unopened":[],"bounds":{"document_bytes":16777216,"sheet_cells":100000,"rows_first":2000,"rows_last":500,"rows_between":2000,"halvings":0,"cell_chars":16384,"cell_head_chars":4096},"cells_cut":0,"cells_raw":0,"read":"whole","date_system":"1900"}

{"sheet":"Angaben BGA und LW","index":0,"n_rows":95,"n_cols":9,"rows_kept":95,"cut":false,"hidden":false,"merged":[[2,4,2,7],[1,4,1,7],[72,8,88,10],[55,8,67,10],[4,8,50,10],[71,8,71,10],[16,1,16,6],[23,1,23,3],[51,8,53,10],[68,8,70,10],[54,8,54,10],[31,2,31,3],[23,5,24,7],[22,5,22,7],[23,4,24,4],[0,8,3,10],[0,0,0,6],[82,0,82,5],[85,0,85,5],[8,2,8,3],[2,1,2,3],[67,1,67,6],[66,0,66,1],[10,3,10,6],[11,3,11,6],[49,0,49,1],[65,0,65,1],[12,2,12,4],[6,4,6,6],[17,1,17,6],[18,1,18,6],[15,1,15,6],[94,0,94,5],[24,1,24,3],[29,1,29,3],[26,1,26,3],[30,3,30,5],[87,0,87,5],[84,0,84,5],[83,0,83,5],[88,0,88,5],[86,0,86,5],[90,0,90,5],[93,0,93,5],[89,0,89,5],[91,0,91,5],[92,0,92,5],[50,1,50,6]]}
["Angaben Biogasanlage und Landwirtschaft/Substrateinsatz"]
["1. Allgemeine Angaben","(Titel) Name, Vorname"]
["Name des Antragstellers "]
[]
["Antragsdatum"]
[]
["Bezugsjahr\nJahr, auf das sich die nachfolgenden Angaben zu BGA und LW beziehen",null,null,null,"Schwellenwerte"]
[null,null,null,null,"Mitarbeiterzahl","Jahresumsatz","Jahresbilanzsumme"]
["Größe des Unternehmens*\n*gemäß KMU-Definition, Anhang I, Artikel 2 der EU-Verordnung 651/2014 \nsowie Benutzerleitfaden Definition von KMU",null,"Klein(st)unternehmen\nMittelunternehmen\nGroßunternehmen ",null,"<50\n<250\n>250","≤10 Mio. Euro\n≤50 Mio. Euro\n>50 Mio. Euro","oder ≤10 Mio. Euro\noder ≤43 Mio. Euro\noder >43 Mio. Euro"]
[]
[null,null,null,"https://eur-lex.europa.eu/legal-content/DE/TXT/PDF/?uri=CELEX:32014R0651"]
[null,"Basis-Förderhöhe"," ","https://eur-lex.europa.eu/legal-content/DE/TXT/PDF/?uri=CELEX:32003H0361&from=EN"]
[null,{"$f":"IF(B9=\"KU\",0.4,IF(B9=\"MU\",0.25,IF(B9=\"GU\",0.1,IF(B9=\"\",0))))","v":0}," >>> s. 4. Angaben zu geplanten Maßnahmen"]
[]
["Kooperationspartner (KP) Substratbereitstellung","Name, Anschrift"]
["KP1"]
["KP2"]
["KP3"]
["KP4"]
[null,"Für mehr als 4 KP nutzen Sie bitte das Blatt 'Weitere Kooperationspartner'"]
["2. Angaben zur Biogasanlage (BGA)"]
["Eigentümer","Bitte Zutreffendes ausfüllen (Person oder Unternehmen)"]
["Anrede",null,"Titel",null,"Unternehmen"]
["Vorname",null,null,null,"Name vetretungs-berechtigte Person"]
["Nachname"]
["Betreiber","falls abweichend vom Eigentümer"]
["Name; Geschäftsform"]
["BGA-Standort"]
["Bundesland"]
["Straße, Hausnummer"]
["PLZ",null,"Ort"]
["Nr. im Marktstammdatenregister (MaStR-Nr.) \nnur für BHKW, das direkt an BGA steht",null,null,null,"z.B. SEE/GEE 12-stellige Zahl"]
["Blockheizkraftwerk (BHKW)"]
["gesamte installierte elektrische Leistung in kW",null,null,null,"Förderung nach EEG",null,"Neuanlage"]
["Erstinbetriebnahmedatum",null,null,null,"EEG-Laufzeit bis (MM/JJJJ)"]
["Gasaufbereitung"]
["Aufbereitungskapazität (nur Gasaufbereitungsanlage) Biomethan in Nm³/h"]
["Erstinbetriebnahmedatum der BGA mit dem ersten BHKW"]
[]
["Nachgärer s. Maßnahme 2.2 der Förderrichtlinie (FRL) "]
["Anzahl"]
["Gesamtbehältervolumen in m³"]
["Gärrestlager s. Maßnahmen 2.1; 2.2 der FRL"]
["Anzahl"]
["Gesamtbehältervolumen in m³"]
[]
[]
["3. Angaben zum Substrateinsatz","BGA: Biogasanlagenbetreiber KP1…4: Kooperationspartner",null,null,"KP1…4: bitte machen Sie hier Angaben zu den (bis zu) vier größten Substratlieferanten"]
[]
["3.1 AKTUELLER Substrateinsatz"]
[null,"jährlicher Substrateinsatz\nin t FM/a    (FM=Frischmasse)"]
[null,"GESAMT","BGA","KP1","KP2","KP3","KP4","KP weitere","Für mehr als 4 KP \nBitte nutzen Sie das Datenblatt 'Weitere Kooperationspartner'. In Spalte \"KP weitere\" werden die ermittelten Angaben automatisch übernommen."]
["Wirtschaftsdünger (WD), davon",{"$f":"SUM(B54:B60,H53)","v":0},{"$f":"SUM(C54:C60)","v":0},0,0,0,0,{"$f":"'Weitere Kooperationspartner'!E21","v":0}]
["Rindergülle",{"$f":"SUM(C54:H54)","v":0}]
["Rinderfestmist",{"$f":"SUM(C55:H55)","v":0},null,null,null,null,null,null,"Weitere Kooperationspartner…"]
["Schweinegülle",0]
["Schweinefestmist",0]
["Schaf-/Ziegenmist",0]
["Geflügelmist/Hühnertrockenkot (HTK)",0]
["Pferdemist",0]
["Anbaubiomasse",0,null,null,null,null,null,{"$f":"'Weitere Kooperationspartner'!G21","v":0}]
["Sonst. Rest- und Abfallstoffe",0,null,null,null,null,null,{"$f":"'Weitere Kooperationspartner'!I21","v":0}]
["aktueller Substrateinsatz GESAMT (t FM/a)",{"$f":"SUM(B53,B61,B62)","v":0}]
["Anteil WD an aktuellem Gesamtsubstrateinsatz (Masse-%)",{"$f":"IF(B63=0,\"0\",IF(B63>0,(B53/B63)*100))","v":"0"}," >>> s. Hinweise WD-Anteil"]
[]
[]
["3.2 GEPLANTER Substrateinsatz"]
[null,"jährlicher Substrateinsatz\nin t FM/a    (FM=Frischmasse)"]
[null,"GESAMT","BGA","KP1","KP2","KP3","KP4","KP weitere","Für mehr als 4 KP \nBitte nutzen Sie das Datenblatt 'Weitere Kooperationspartner'. In Spalte \"KP weitere\" werden die ermittelten Angaben automatisch übernommen."]
["Wirtschaftsdünger (WD), davon",{"$f":"SUM(B71:B77,H70)","v":0},{"$f":"SUM(C71:C77)","v":0},0,0,0,0,{"$f":"'Weitere Kooperationspartner'!F21","v":0}]
["Rindergülle",{"$f":"SUM(C71:H71)","v":0}]
["Rinderfestmist",{"$f":"SUM(C72:H72)","v":0},null,null,null,null,null,null,"Weitere Kooperationspartner…"]
["Schweinegülle",0]
["Schweinefestmist",0]
["Schaf-/Ziegenmist",0]
["Geflügelmist/Hühnertrockenkot (HTK)",0]
["Pferdemist",0]
["Anbaubiomasse",0,null,null,null,null,null,{"$f":"'Weitere Kooperationspartner'!H21","v":0}]
["Sonst. Rest- und Abfallstoffe",0,null,null,null,null,null,{"$f":"'Weitere Kooperationspartner'!J21","v":0}]
["geplanter Substrateinsatz GESAMT (t FM/a)",{"$f":"SUM(B70,B78,B79)","v":0}]
["Anteil WD an geplantem Gesamtsubstrateinsatz (Masse-%)",{"$f":"IF(B80=0,\"0\",IF(B80>0,(B70/B80)*100))","v":"0"}," >>> s. Hinweise WD-Anteil",null,null,null,null,"GV-Rechner"]
[]
["Hinweise:",null,null,null,null,null,"Voraussetzung erfüllt?"]
["Für Maßnahme 2.2 der FRL erforderliches Ergebnis: \nWD-Anteil 0 oder <15 Masse-% vor und ≥30 Masse-% an jährlichem Gesamtsubstrateinsatz nach Umsetzung der Fördermaßnahme",null,null,null,null,null,{"$f":"IF(AND(VALUE(B64)<15,VALUE(B81)>=30,(H34)=\"Nein\"),\"JA\",\"NEIN\")","v":"NEIN"}]
["WD-Anteil ≥15 Masse-% vor und Steigerung um mind. 15 Masse-%  an jährlichem Gesamtsubstrateinsatz nach Umsetzung der Fördermaßnahme",null,null,null,null,null,{"$f":"IF(AND(VALUE(B64)>=15,VALUE(B81)>=B64+15),\"JA\",\"NEIN\")","v":"NEIN"}]
["Für Maßnahme 2.3 der FRL erforderliches Ergebnis: \nWD-Anteil ≥80 Masse-% an jährlichem Gesamtsubstrateinsatz (Zielvorgabe für geplanten Substrateinsatz)",null,null,null,null,null,{"$f":"IF(AND(VALUE(B64)=0,VALUE(B81)>=80,H34=\"Ja\"),\"JA\",\"NEIN\")","v":"NEIN"}]
["Förderbonus 10% (WD-Anteil abhängig)",null,null,null,null,null,"Bonus"]
["Für Maßnahmen 2.2 gemäß FRL 6.4b: \nWD-Anteil <25 Masse-% vor und ≥50 Masse-% an jährlichem Gesamtsubstrateinsatz nach Umsetzung der Fördermaßnahme oder",null,null,null,null,null,{"$f":"IF(AND(VALUE(B64)<25,VALUE(B81)>=50,(H34)=\"Nein\"),\"Bonus\",\"kein Bonus\")","v":"kein Bonus"}]
["WD-Anteil ≥25 Masse-% vor und Steigerung um mind. 25 Masse-% an jährlichem Gesamtsubstrateinsatz nach Umsetzung der Fördermaßnahme",null,null,null,null,null,{"$f":"IF(AND(VALUE(B64)>=25,VALUE(B81)>=B64+25),\"Bonus\",\"kein Bonus\")","v":"kein Bonus"}]
["Sonstige Regelungen: "]
["WD-Anteile vor und nach Umsetzung =0%",null,null,null,null,null,{"$f":"IF(B64+B81=0,\"kein Bonus\",\"kein Bonus\")","v":"kein Bonus"}]
["Für Maßnahme 2.1, gasdichte Abdeckung mit 2.4, investionsbegleitender Maßnahme ",null,null,null,null,null,{"$f":"IF('Massnahmen und Zuwendung'!C7>0,\"kein Bonus\",\"kein Bonus\")","v":"kein Bonus"}]
["Für Maßnahme 2.1, gasdichte Abdeckung mit 2.2, Umrüstung und 2.4, investionsbegleitender Maßnahme ",null,null,null,null,null,{"$f":"IF(AND('Massnahmen und Zuwendung'!C7>0,'Massnahmen und Zuwendung'!C16>0),\"Bonus\",\"kein Bonus\")","v":"kein Bonus"}]
["Für Maßnahme 2.3, Neuanlage mit 2.4, investionsbegleitender Maßnahme",null,null,null,null,null,{"$f":"IF('Massnahmen und Zuwendung'!C23>0,\"Bonus\",\"kein Bonus\")","v":"kein Bonus"}]
["Für Maßnahme 2.1 mit 2.4, wenn Bedingungen WD-Anteile erfüllt sind",null,null,null,null,null,{"$f":"IF(AND('Massnahmen und Zuwendung'!C7>0,G88=\"Bonus\",G89=\"Bonus\"),\"kein Bonus\",\"kein Bonus\")","v":"kein Bonus"}]

{"sheet":"Massnahmen und Zuwendung","index":1,"n_rows":41,"n_cols":9,"rows_kept":41,"cut":false,"hidden":false,"merged":[[39,4,40,4],[40,0,40,1],[6,0,6,1],[27,0,27,1],[14,0,14,1],[13,0,13,1],[14,4,19,4],[36,4,37,4],[20,4,24,4],[25,4,30,4],[31,4,35,4],[9,4,13,4],[0,4,8,4]]}
["4. Angaben zu geplanten Maßnahmen"]
[null,null,"Basis-Förderhöhe"]
[null,null,{"$f":"'Angaben BGA und LW'!B13","v":0}]
["4.1 Ausgaben",null,{"$f":"H31","v":"kein Bonus"}]
["Für Vorsteuerabzugsberechtigte: Bitte Nettobeträge angeben;\nFür Nicht-Vorsteuerabzugsberechtigte: Bitte Bruttobeträge angeben.",null,"Ausgaben (gem. Angebot) in Euro"]
["4.1.1 Gasdichte Abdeckung von Gärrestlagern (2.1 gemäß FRL)"]
[" - gasdichte Abdeckung; \n - Sicherheitstechnik; \n - Behälterertüchtigung; \n - Abriss und Neubau.",null,null,null,null,{"$f":"IF(C7>0,0,C29*0.1)","v":0},"wenn C7>0"]
["Förderhöhe: 40%","Zuwendung in Euro",{"$f":"C7*0.4","v":0},null,null,{"$f":"IF(C7+C16>0,C29*0.1,\"0,00\")","v":"0,00"},"wenn C7+C16>0"]
[]
[null,null,"Ausgaben (gem. Angebot) in Euro"]
["4.1.2 Umrüstung Bestandsanlagen (2.2 gemäß FRL)"]
["Aufbereitung von WD (2.2.1 FRL): \nFörderfähige Maschinen und Geräte zur Substrataufbereitung/-einbringung von flüssigen/festen WD\n    - Rühr- und Pumptechnik; \n    - Vorlagen- und Dosiereinrichtungen; \n    - Zerkleinerungs- und Aufschlusstechnik. "]
["Bau von Lagerbehältern (2.2.2 gemäß FRL)"]
["WD-Sammlung und Annahme am Standort der BGA (2.2.3 gemäß FRL): \nFörderfähige Anlagen, Einrichtungen, Maschinen und Geräte zur Wirtschaftsdüngersammlung und -annahme \na) Maßnahmen und Einrichtungen am Standort der Biogasanlage\n    - Herstellung der Wegführung; \n    - Errichtung des Annahmebereiches und -einrichtungen; \n    - Einrichtung zur Entleerung, Behandlung und Befüllung; \n    - Einrichtungen zur Registrierung und Abrechnung, Mess- und Wiegeeinrichtungen; \n    - Maßnahmen zur Erfüllung seuchenhygienischer und veterinärrechtlicher Anforderungen; \n    - Einrichtungen zur Reinigung und Desinfektion von Transportfahrzeugen. "]
["b) zur logistischen Umsetzung der Wirtschaftsdüngermobilisierung \n    - Bau von Transportleitungen vom Stall zur Biogasanlage für Wirtschaftsdünger, inkl. Peripherie \n      (u.a. Pumpen, Schieber, Steuerung),\n    - Anschaffung und Einrichtung eines Logistik-Managementsystems (IT)",null,null,null,"Hinweis 10%-Förderbonus:\nFür Maßnahme 2.2 gemäß FRL 6.4b: \nWD-Anteil <25 Masse-% vor und ≥50 Masse-% an jährlichem Gesamtsubstrateinsatz nach Umsetzung der Fördermaßnahme\noder \nWD-Anteil ≥25 Masse-% vor und Steigerung um mind. 25 Masse-% an jährlichem Gesamtsubstrateinsatz nach Umsetzung der Fördermaßnahme\nAndernfalls kann kein Bonus angerechnet werden."]
[null,"Summe der Ausgaben in Euro",{"$f":"SUM(C12:C15)","v":0}]
["Förderhöhe entsprechend Unternehmensgröße (s. Basis-Förderhöhe)","in Euro",{"$f":"SUM(C12:C15)*C3","v":0}]
[" Nur zutreffend, wenn Bedingungen gemäß FRL 6.4b erfüllt sind","10%-BONUS",{"$f":"IF('Angaben BGA und LW'!G88=\"Bonus\",C16*0.1,IF('Angaben BGA und LW'!G89=\"Bonus\",C16*0.1,\"0,00\"))","v":"0,00"}]
[null,"Zuwendung in Euro",{"$f":"SUM(C17:C18)","v":0}]
[null,null," "]
[null,null,"Ausgaben (gem. Angebot) in Euro"]
["4.1.3 WD-Spezifik Neuanlagen (2.3 gemäß FRL)"]
["Voraussetzung: WD-Anteil Neuanlage \n≥ 80% an jährlich eingesetzter Substratmenge"]
["Förderhöhe entsprechend Unternehmensgröße (s. Basis-Förderhöhe)","Zuwendung in Euro",{"$f":"C23*C3","v":0}]
[]
[null,null,"Ausgaben (gem. Angebot) in Euro"]
["4.1.4 Investitionsbegleitung (2.4 gemäß FRL)",null,null,null,null,null,"für 2.3 (nur wenn WD-Anteil >=80%)",{"$f":"'Angaben BGA und LW'!G86","v":"NEIN"}]
["Diese umfasst mit dem Investitionsvorhaben direkt zusammenhängende Aufwendungen, etwa für: \n- Architektur- und Ingenieurleistungen;\n- Ersteinweisungen bei Maschinen und Technik vom Hersteller; \n- Bauberatung und Betreuung von baulichen Investitionen; \n- Vergabeleistungen; \n- Durchführbarkeitsstudien.",null,null,null,null,null,"Wenn WD-Anteile <25 und >=50, dann Bonus",{"$f":"'Angaben BGA und LW'!G88","v":"kein Bonus"},{"$f":"IF(H28=\"Bonus\",1,0)","v":0}]
["Förderhöhe entsprechend Unternehmensgröße (s. Basis-Förderhöhe)","in Euro",{"$f":"C28*C3","v":0},null,null,null,"Wenn WD-Anteile >25 und +25, dann Bonus",{"$f":"'Angaben BGA und LW'!G89","v":"kein Bonus"},0]
["Zuwendungsfähige Ausgaben unter 2.4 max. 10% der förderfähigen Investitionssumme nach Maßgabe 2.1, 2.2 und 2.3 der FRL ","Zuwendung in Euro",{"$f":"IF(C29>SUM(C24,C19,C8)*0.1,SUM(C24,C19,C8)*0.1,C29)","v":0},null,null,null,"wenn WD-Anteile=0, dann 0,00",{"$f":"'Angaben BGA und LW'!G91","v":"kein Bonus"},0]
[null,null,{"$f":"IF(C29>SUM(C24,C19,C8)*0.1,\"Zuwendungsfähige Ausgabenhöhe von 10 % überschritten\",\" \")","v":" "},null,null,null,null,{"$f":"IF(I31>0,\"Bonus\",\"kein Bonus\")","v":"kein Bonus"},{"$f":"SUM(I28:I30)","v":0}]
[null,null,"Ausgaben (gem. Angebot) in Euro"]
[]
["4.1.5 Sachkundige Begleitung (3. gemäß FRL) verpflichtend ",null,5000]
["Förderhöhe: 80%;maximale Fördersumme: 8.000 €","Zuwendung in Euro",{"$f":"IF(C34>10000,8000,C34*0.8)","v":4000}]
[null,null,{"$f":"IF(C34*0.8>8000,\"max. Förderhöhe überschritten\",\" \")","v":" "}]
["4.2 Gesamtfinanzierung",null,"Angaben in Euro",null,"Bitte übertragen Sie den Wert in das \neasy-Online Formular (Gesamtausgaben)"]
[" 4.2.1 Gesamtausgaben Investitionen (inkl. Sachkundige Begleitung 4.1.5)",null,{"$f":"SUM(C34,C28,C23,C16,C7)","v":5000}]
[" 4.2.2 zu erbringender Eigenanteil 4.2.1 abzüglich 4.2.3",null,{"$f":"C38-C40","v":5000}]
[" 4.2.3 Zuwendung",null,{"$f":"IF(SUM(C35,C30,C24,C19,C8)<5000,0,IF(SUM(C35,C30,C24,C19,C8)>200000,200000,SUM(C35,C30,C24,C19,C8)))","v":0},null,"Bitte übertragen Sie den Wert in das \neasy-Online Formular (Finanzübersicht)"]
["Voraussichtliche Zuwendung nach den Programmförderrichtlinien\nZuwendungssumme aller unter 4.1 aufgeführten Maßnahmen inkl. 4.1.5 max. 200.000 Euro; Bagatellgrenze 5.000 Euro",null,{"$f":"IF(SUM(C35,C30,C24,C19,C8)>200000,\"max. Förderhöhe überschritten\",IF(SUM(C35,C30,C24,C19,C8)<5000,\"Bagatellgrenze unterschritten\",\" \"))","v":"Bagatellgrenze unterschritten"}]

{"sheet":"Viehbesatz","index":2,"n_rows":53,"n_cols":15,"rows_kept":53,"cut":false,"hidden":false,"merged":[[3,1,7,1],[0,4,0,10],[1,11,7,14]]}
[null,"Ermittlung des Viehbesatzes",null,null,"Großvieheinheiten (GV)"]
[null,"Quelle: nach KTBL",null,null,"gesamt","BGA","KP1","KP2","KP3","KP4","KP weitere","BGA: GV-Einheiten bzgl. Biogasanlagenbetreiber\nKP1...4: GV-Einheiten bzgl. Kooperationspartner\n\nFür mehr als 4 Kooperationspartner (KP) nutzen Sie bitte \ndie Spalte \"KP weitere\", um die GV je KP zu berechnen; \nübertragen Sie den jeweils  berechneten GV-Gesamtwert in die entsprechende Spalte \"GV\" des jeweiligen KPs der Tabelle in dem Blatt 'Weitere Kooperationspartner'"]
[null,null,null,null,{"$f":"SUM(F3:J3)","v":0},{"$f":"SUM(F4:F8)","v":0},0,0,0,0,0]
[null,"Bitte tragen Sie hier nur den geplanten Viehbesatz ein; \ndie ermittelten Großvieheinheiten (GV) dienen der Plausibiltätsprüfung des geplanten WD-Anteils, der im Datenblatt 'Angaben BGA und LW' angegeben wird.",null,"Rinder",{"$f":"SUM(F4:K4)","v":0},{"$f":"SUMIF($A$11:$A$53,$D4,E$11:E$53)","v":0},{"$f":"SUMIF($A$11:$A$53,$D4,G$11:G$53)","v":0},{"$f":"SUMIF($A$11:$A$53,$D4,I$11:I$53)","v":0},{"$f":"SUMIF($A$11:$A$53,$D4,K$11:K$53)","v":0},{"$f":"SUMIF($A$11:$A$53,$D4,M$11:M$53)","v":0},{"$f":"SUMIF($A$11:$A$53,$D4,O$11:O$53)","v":0}]
[null,null,null,"Schweine",{"$f":"SUM(F5:K5)","v":0},{"$f":"SUMIF($A$11:$A$53,$D5,E$11:E$53)","v":0},{"$f":"SUMIF($A$11:$A$53,$D5,G$11:G$53)","v":0},{"$f":"SUMIF($A$11:$A$53,$D5,I$11:I$53)","v":0},{"$f":"SUMIF($A$11:$A$53,$D5,K$11:K$53)","v":0},{"$f":"SUMIF($A$11:$A$53,$D5,M$11:M$53)","v":0},{"$f":"SUMIF($A$11:$A$53,$D5,O$11:O$53)","v":0}]
[null,null,null,"Schafe / Ziegen",0,0,0,0,0,0,0]
[null,null,null,"Geflügel",0,0,0,0,0,0,0]
[null,null,null,"Pferde",0,0,0,0,0,0,0]
[]
["Tierart-Gruppe","Tierart","GV-Einheit","Anzahl\nBGA","GV","Anzahl\nKP1","GV","Anzahl\nKP2","GV","Anzahl \nKP3","GV","Anzahl\nKP4","GV","Anzahl\nKP weitere","GV"]
["Rinder","Rinder"]
["Rinder","Kühe und Rinder über 2 Jahre",1.2,null,{"$f":"C12*D12","v":0},null,{"$f":"C12*F12","v":0},null,{"$f":"C12*H12","v":0},null,{"$f":"C12*J12","v":0},null,{"$f":"C12*L12","v":0},null,{"$f":"C12*N12","v":0}]
["Rinder","Weibliches Jungvieh 1 - 2 Jahre",0.6,null,0,null,{"$f":"C13*F13","v":0},null,{"$f":"C13*H13","v":0},null,{"$f":"C13*J13","v":0},null,{"$f":"C13*L13","v":0},null,{"$f":"C13*N13","v":0}]
["Rinder","Mastrinder 1 - 2 Jahre",0.7,null,0,null,0,null,0,null,0,null,0,null,0]
["Rinder","Kälber und Jungvieh bis 1 Jahr",0.3,null,0,null,0,null,0,null,0,null,0,null,0]
["Rinder","Mastkälber",0.3,null,0,null,0,null,0,null,0,null,0,null,0]
["Schweine","Schweine"]
["Schweine","Mastschweine (20 - 110 kg)",0.13,null,{"$f":"C18*D18","v":0},null,0,null,0,null,0,null,0,null,0]
["Schweine","Mastschweine (25 - 115 kg)",0.14000000000000001,null,0,null,0,null,0,null,0,null,0,null,0]
["Schweine","Zuchtsauen ohne Ferkel, Eber (150 kg)",0.3,null,0,null,0,null,0,null,0,null,0,null,0]
["Schweine","Zuchtsauen mit Ferkeln (Ferkel 1,4 - 9 kg)",0.4,null,0,null,0,null,0,null,0,null,0,null,0]
["Schweine","Zuchtsauen mit Ferkeln (Ferkel 1,4 - 13,6 kg)",0.45,null,0,null,0,null,0,null,0,null,0,null,0]
["Schweine","Jungsauenaufzucht (30 - 90 kg)",0.12,null,0,null,0,null,0,null,0,null,0,null,0]
["Schweine","Aufzuchtferkel (6/8 - 15 kg)",0.02,null,0,null,0,null,0,null,0,null,0,null,0]
["Schweine","Aufzuchtferkel (6/8 - 25 kg)",0.03,null,0,null,0,null,0,null,0,null,0,null,0]
["Schweine","Aufzuchtferkel (13 - 28 kg)",0.04,null,0,null,0,null,0,null,0,null,0,null,0]
["Schafe / Ziegen","Schafe"]
["Schafe / Ziegen","Schafe über 1 Jahr",0.1,null,0,null,0,null,0,null,0,null,0,null,0]
["Schafe / Ziegen","Schafe unter 1 Jahr",0.05,null,0,null,0,null,0,null,0,null,0,null,0]
["Schafe / Ziegen","Bock",0.2,null,0,null,0,null,0,null,0,null,0,null,0]
["Schafe / Ziegen","Ziegen"]
["Schafe / Ziegen","Böcke",0.14000000000000001,null,0,null,0,null,0,null,0,null,0,null,0]
["Schafe / Ziegen","Mutterziegen",0.11,null,0,null,0,null,0,null,0,null,0,null,0]
["Schafe / Ziegen","Sauglämmer 1. - 5. Tag",4.0000000000000001E-3,null,0,null,0,null,0,null,0,null,0,null,0]
["Schafe / Ziegen","Tränklämmer 2. - 7. (8.) Woche",0.01,null,0,null,0,null,0,null,0,null,0,null,0]
["Schafe / Ziegen","Aufzuchtlämmer 8. Woche - 5. Monat",0.04,null,0,null,0,null,0,null,0,null,0,null,0]
["Schafe / Ziegen","Jungböcke 6. - 12. Monat",0.09,null,0,null,0,null,0,null,0,null,0,null,0]
["Schafe / Ziegen","Jungziegen 6. - 9. Monat",0.08,null,0,null,0,null,0,null,0,null,0,null,0]
["Geflügel","Geflügel"]
["Geflügel","Legehennen",3.3999999999999998E-3,null,0,null,0,null,0,null,0,null,0,null,0]
["Geflügel","Junghennen",1.4E-3,null,0,null,0,null,0,null,0,null,0,null,0]
["Geflügel","Masthähnchen",1.5E-3,null,0,null,0,null,0,null,0,null,0,null,0]
["Geflügel","Pekingentenaufzucht",1.2999999999999999E-3,null,0,null,0,null,0,null,0,null,0,null,0]
["Geflügel","Pekingentenmast",3.8E-3,null,0,null,0,null,0,null,0,null,0,null,0]
["Geflügel","Flugentenaufzucht",1.1999999999999999E-3,null,0,null,0,null,0,null,0,null,0,null,0]
["Geflügel","Flugentenmast",5.0000000000000001E-3,null,0,null,0,null,0,null,0,null,0,null,0]
["Geflügel","Truthühneraufzucht",2.2000000000000001E-3,null,0,null,0,null,0,null,0,null,0,null,0]
["Geflügel","Truthühnermast, Hennen",1.2500000000000001E-2,null,0,null,0,null,0,null,0,null,0,null,0]
["Geflügel","Truthühnermast, Hähne",2.2200000000000001E-2,null,0,null,0,null,0,null,0,null,0,null,0]
["Pferde","Pferde"]
["Pferde","Fohlen unter 6 Monate und Ponys",0.5,null,{"$f":"C51*D51","v":0},null,0,null,0,null,0,null,0,null,0]
["Pferde","Pferde 6 Monate bis 1 Jahr",0.7,null,{"$f":"C52*D52","v":0},null,0,null,0,null,0,null,0,null,0]
["Pferde","Pferde über 1 Jahr",1,null,{"$f":"C53*D53","v":0},null,0,null,0,null,0,null,0,null,0]

{"sheet":"Weitere Kooperationspartner","index":3,"n_rows":108,"n_cols":14,"rows_kept":108,"cut":false,"hidden":false,"merged":[[2,1,2,2],[22,1,22,3],[23,1,23,3],[24,1,24,3],[25,1,25,3],[26,1,26,3],[38,1,38,3],[27,1,27,3],[28,1,28,3],[29,1,29,3],[30,1,30,3],[31,1,31,3],[32,1,32,3],[33,1,33,3],[34,1,34,3],[35,1,35,3],[36,1,36,3],[37,1,37,3],[50,1,50,3],[39,1,39,3],[40,1,40,3],[41,1,41,3],[42,1,42,3],[43,1,43,3],[44,1,44,3],[45,1,45,3],[46,1,46,3],[47,1,47,3],[48,1,48,3],[49,1,49,3],[62,1,62,3],[51,1,51,3],[52,1,52,3],[53,1,53,3],[54,1,54,3],[55,1,55,3],[56,1,56,3],[57,1,57,3],[58,1,58,3],[59,1,59,3],[60,1,60,3],[61,1,61,3],[74,1,74,3],[63,1,63,3],[64,1,64,3],[65,1,65,3],[66,1,66,3],[67,1,67,3],[68,1,68,3],[69,1,69,3],[70,1,70,3],[71,1,71,3],[72,1,72,3],[73,1,73,3],[86,1,86,3],[75,1,75,3],[76,1,76,3],[77,1,77,3],[78,1,78,3],[79,1,79,3],[80,1,80,3],[81,1,81,3],[82,1,82,3],[83,1,83,3],[84,1,84,3],[85,1,85,3],[98,1,98,3],[87,1,87,3],[88,1,88,3],[89,1,89,3],[90,1,90,3],[91,1,91,3],[92,1,92,3],[93,1,93,3],[94,1,94,3],[95,1,95,3],[96,1,96,3],[97,1,97,3],[105,1,105,3],[106,1,106,3],[107,1,107,3],[99,1,99,3],[100,1,100,3],[101,1,101,3],[102,1,102,3],[103,1,103,3],[104,1,104,3],[3,4,3,5],[17,4,17,9],[18,4,18,5],[18,6,18,7],[5,2,5,3],[19,13,20,14],[17,10,18,11],[20,2,20,3],[21,6,21,9],[21,4,21,5],[18,8,18,9],[21,1,21,3]]}
[null,"Weitere Kooperationspartner (KP)","Bitte nutzen Sie dieses Datenblatt nur bei mehr als 4 Kooperationspartnern"]
[]
[null,"AKTUELLER und GEPLANTER Substrateinsatz je KP"]
[null,null,null,null,"jährlicher Substrateinsatz\nin t FM/a    (FM=Frischmasse)"]
[null,null,null,null,"aktuell","geplant"]
[null,null,"Wirtschaftsdünger (WD) SUMME \ndavon",null,{"$f":"SUM(E7:E13)","v":0},{"$f":"SUM(F7:F13)","v":0}]
[null,null,null,"Rindergülle"]
[null,null,null,"Rinderfestmist"]
[null,null,null,"Schweinegülle"]
[null,null,null,"Schweinefestmist"]
[null,null,null,"Schaf-/Ziegenmist"]
[null,null,null,"Geflügelmist/Hühnertrockenkot (HTK)"]
[null,null,null,"Pferdemist"]
[null,null,null,null,null,"Anbaubiomasse"]
[null,null,null,null,null,"Sonst. Rest- und Abfallstoffe"]
[null,null,null,null,null,"Substrateinsatz GESAMT je KP (t FM/a)",{"$f":"SUM(E6,G14,G15)","v":0},{"$f":"SUM(F6,H14,H15)","v":0}]
[]
[null,null,null,null,"jährlicher Substrateinsatz\nin t FM/a    (FM=Frischmasse)",null,null,null,null,null,"Substrateinsatz GESAMT\nin t FM/a    (FM=Frischmasse)\n\nKooperationspartner (KP)",null,"GV-Rechner"]
[null,null,null,null,"Wirtschaftsdünger (WD)",null,"Anbaubiomasse",null,"Rest-/Abfallstoffe"]
[null,null,null,null,"aktuell","geplant","aktuell","geplant","aktuell","geplant","aktuell","geplant","GV"," Bitte die nutzen Sie in dem \nDatenblatt \"Viehbesatz\" \nSpalte \"KP weitere\", \num die GV je KP zu berechnen und hier einzutragen"]
[null,"Kooperationspartner (KP) Substratbereitstellung","s. Spalte \"KP weitere\" in Datenblatt \"Angaben BGA und LW\"",null,{"$f":"SUM(E23:E108)","v":0},0,0,0,0,0,{"$f":"SUM(K23:K97)","v":0},{"$f":"SUM(L23:L97)","v":0},{"$f":"SUM(M23:M108)","v":0}]
[null,"Bitte tragen Sie hier weitere Kooperationspartner (Name, Anschrift) ein",null,null,"Bitte tragen Sie hier die WD Summe aktuell/geplant (s. Tabelle oben) \nje KP ein",null,"Bitte tragen Sie hier den aktuellen/geplanten jährlichen Substrateinsatz für Anbaubiomasse und/oder Rest-/Abfallstoffe je KP ein",null,null,null,"je KP","je KP","je KP"]
["KP5",null,null,null,null,null,null,null,null,null,{"$f":"SUM(E23,G23,I23)","v":0},{"$f":"SUM(F23,H23,J23)","v":0}]
["KP6",null,null,null,null,null,null,null,null,null,{"$f":"SUM(E24,G24,I24)","v":0},{"$f":"SUM(F24,H24,J24)","v":0}]
["KP7",null,null,null,null,null,null,null,null,null,0,0]
["KP8",null,null,null,null,null,null,null,null,null,0,0]
["KP9",null,null,null,null,null,null,null,null,null,0,0]
["KP10",null,null,null,null,null,null,null,null,null,0,0]
["KP11",null,null,null,null,null,null,null,null,null,0,0]
["KP12",null,null,null,null,null,null,null,null,null,0,0]
["KP13",null,null,null,null,null,null,null,null,null,0,0]
["KP14",null,null,null,null,null,null,null,null,null,0,0]
["KP15",null,null,null,null,null,null,null,null,null,0,0]
["KP16",null,null,null,null,null,null,null,null,null,0,0]
["KP17",null,null,null,null,null,null,null,null,null,0,0]
["KP18",null,null,null,null,null,null,null,null,null,0,0]
["KP19",null,null,null,null,null,null,null,null,null,0,0]
["KP20",null,null,null,null,null,null,null,null,null,0,0]
["KP21",null,null,null,null,null,null,null,null,null,0,0]
["KP22",null,null,null,null,null,null,null,null,null,0,0]
["KP23",null,null,null,null,null,null,null,null,null,0,0]
["KP24",null,null,null,null,null,null,null,null,null,0,0]
["KP25",null,null,null,null,null,null,null,null,null,0,0]
["KP26",null,null,null,null,null,null,null,null,null,0,0]
["KP27",null,null,null,null,null,null,null,null,null,0,0]
["KP28",null,null,null,null,null,null,null,null,null,0,0]
["KP29",null,null,null,null,null,null,null,null,null,0,0]
["KP30",null,null,null,null,null,null,null,null,null,0,0]
["KP31",null,null,null,null,null,null,null,null,null,0,0]
["KP32",null,null,null,null,null,null,null,null,null,0,0]
["KP33",null,null,null,null,null,null,null,null,null,0,0]
["KP34",null,null,null,null,null,null,null,null,null,0,0]
["KP35",null,null,null,null,null,null,null,null,null,0,0]
["KP36",null,null,null,null,null,null,null,null,null,0,0]
["KP37",null,null,null,null,null,null,null,null,null,0,0]
["KP38",null,null,null,null,null,null,null,null,null,0,0]
["KP39",null,null,null,null,null,null,null,null,null,0,0]
["KP40",null,null,null,null,null,null,null,null,null,0,0]
["KP41",null,null,null,null,null,null,null,null,null,0,0]
["KP42",null,null,null,null,null,null,null,null,null,0,0]
["KP43",null,null,null,null,null,null,null,null,null,0,0]
["KP44",null,null,null,null,null,null,null,null,null,0,0]
["KP45",null,null,null,null,null,null,null,null,null,0,0]
["KP46",null,null,null,null,null,null,null,null,null,0,0]
["KP47",null,null,null,null,null,null,null,null,null,0,0]
["KP48",null,null,null,null,null,null,null,null,null,0,0]
["KP49",null,null,null,null,null,null,null,null,null,0,0]
["KP50",null,null,null,null,null,null,null,null,null,0,0]
["KP51",null,null,null,null,null,null,null,null,null,0,0]
["KP52",null,null,null,null,null,null,null,null,null,0,0]
["KP53",null,null,null,null,null,null,null,null,null,0,0]
["KP54",null,null,null,null,null,null,null,null,null,0,0]
["KP55",null,null,null,null,null,null,null,null,null,0,0]
["KP56",null,null,null,null,null,null,null,null,null,0,0]
["KP57",null,null,null,null,null,null,null,null,null,0,0]
["KP58",null,null,null,null,null,null,null,null,null,0,0]
["KP59",null,null,null,null,null,null,null,null,null,0,0]
["KP60",null,null,null,null,null,null,null,null,null,0,0]
["KP61",null,null,null,null,null,null,null,null,null,0,0]
["KP62",null,null,null,null,null,null,null,null,null,0,0]
["KP63",null,null,null,null,null,null,null,null,null,0,0]
["KP64",null,null,null,null,null,null,null,null,null,0,0]
["KP65",null,null,null,null,null,null,null,null,null,0,0]
["KP66",null,null,null,null,null,null,null,null,null,0,0]
["KP67",null,null,null,null,null,null,null,null,null,0,0]
["KP68",null,null,null,null,null,null,null,null,null,0,0]
["KP69",null,null,null,null,null,null,null,null,null,0,0]
["KP70",null,null,null,null,null,null,null,null,null,{"$f":"SUM(E88,G88,I88)","v":0},{"$f":"SUM(F88,H88,J88)","v":0}]
["KP71",null,null,null,null,null,null,null,null,null,0,0]
["KP72",null,null,null,null,null,null,null,null,null,0,0]
["KP73",null,null,null,null,null,null,null,null,null,0,0]
["KP74",null,null,null,null,null,null,null,null,null,0,0]
["KP75",null,null,null,null,null,null,null,null,null,0,0]
["KP76",null,null,null,null,null,null,null,null,null,0,0]
["KP77",null,null,null,null,null,null,null,null,null,0,0]
["KP78",null,null,null,null,null,null,null,null,null,0,0]
["KP79",null,null,null,null,null,null,null,null,null,0,0]
["KP80",null,null,null,null,null,null,null,null,null,0,0]
["KP81",null,null,null,null,null,null,null,null,null,0,0]
["KP82",null,null,null,null,null,null,null,null,null,0,0]
["KP83",null,null,null,null,null,null,null,null,null,0,0]
["KP84",null,null,null,null,null,null,null,null,null,0,0]
["KP85",null,null,null,null,null,null,null,null,null,0,0]
["KP86",null,null,null,null,null,null,null,null,null,0,0]
["KP87",null,null,null,null,null,null,null,null,null,0,0]
["KP88",null,null,null,null,null,null,null,null,null,0,0]
["KP89",null,null,null,null,null,null,null,null,null,0,0]
["KP90",null,null,null,null,null,null,null,null,null,0,0]